bitfinex/quotes_BTCUSD_20241004
["timestamp","ask_amount","ask_price","bid_price","bid_amount"]
[1728054372956,0.002,61685.0,61670.0,0.24543893]
[1728054373222,0.24543893,61684.0,61676.0,0.324273]
[1728054373448,0.24543893,61684.0,61663.0,0.24543893]
[1728054373449,0.28368091,61683.0,61663.0,0.24543893]
[1728054373710,0.28368091,61683.0,61671.0,0.24543893]
[1728054373711,0.324244,61682.0,61671.0,0.24543893]
[1728054373991,0.324244,61682.0,61660.0,0.324354]
[1728054373992,0.162139,61676.0,61670.0,0.162151]
[1728054374258,0.28368091,61678.0,61657.0,0.32223893]
[1728054374259,0.324285,61674.0,61657.0,0.32223893]
[1728054374489,0.01546687,61675.0,61667.0,0.40759793]
[1728054374716,0.162157,61669.0,61665.0,0.162165]
[1728054374975,0.162157,61669.0,61657.0,0.24543893]
[1728054374976,0.28368091,61673.0,61657.0,0.24543893]
[1728054375207,0.6234094,61668.0,61664.0,0.01]
[1728054375440,0.28368091,61668.0,61664.0,0.172167]
[1728054375713,0.28368091,61668.0,61661.0,0.324352]
[1728054375714,0.18758036,61669.0,61668.0,0.162158]
[1728054375715,0.02542436,61669.0,61668.0,0.162158]
[1728054375997,0.24543893,61675.0,61666.0,0.076]
[1728054376252,0.24543893,61675.0,61674.0,0.162142]
[1728054376725,0.24543893,61683.0,61675.0,0.324278]
[1728054376969,0.24543893,61685.0,61681.0,0.162122]
[1728054377237,0.32416,61698.0,61667.0,0.04815104]
[1728054377238,0.35888091,61693.0,61668.0,0.04815104]
[1728054377478,0.35888091,61693.0,61686.0,0.162109]
[1728054377735,0.28368091,61693.0,61680.0,0.32425]
[1728054377996,0.417676,61695.0,61690.0,0.1621]
[1728054377997,0.0254178,61691.0,61690.0,0.1621]
[1728054378250,0.0935,61695.0,61682.0,0.24543893]
[1728054378503,0.0935,61695.0,61694.0,0.16209]
[1728054378760,0.24543893,61699.0,61697.0,0.162082]
[1728054379014,0.24543893,61699.0,61683.0,0.24543893]
[1728054379256,0.28368091,61698.0,61690.0,0.003]
[1728054379501,0.28368091,61693.0,61690.0,0.003]
[1728054379764,0.28368091,61693.0,61686.0,0.162109]
[1728054380010,0.28368091,61693.0,61683.0,0.40755593]
[1728054380011,0.162107,61688.0,61683.0,0.40755593]
[1728054380256,0.162107,61688.0,61684.0,0.24543893]
[1728054380257,0.28368091,61688.0,61684.0,0.24543893]
[1728054380505,0.28368091,61688.0,61667.0,0.11035]
[1728054380506,0.32403893,61702.0,61686.0,0.24543893]
[1728054380774,0.02541847,61688.0,61687.0,0.02454389]
[1728054381079,0.02541847,61688.0,61687.0,0.40754693]
[1728054381269,0.02541847,61688.0,61672.0,0.60797491]
[1728054381270,0.001,61698.0,61683.0,0.324235]
[1728054381525,0.02541686,61688.0,61687.0,0.162108]
[1728054381793,0.00988922,61697.0,61696.0,0.162085]
[1728054382059,0.56957893,61702.0,61692.0,0.32419]
[1728054382060,0.02541549,61695.0,61692.0,0.32419]
[1728054382311,0.02541549,61695.0,61694.0,0.16209]
[1728054382596,0.02541549,61695.0,61694.0,0.35782671]
[1728054382832,0.02541549,61695.0,61694.0,0.19464]
[1728054383097,0.02541549,61695.0,61694.0,0.29464]
[1728054383591,0.02541549,61695.0,61694.0,0.29964]
[1728054383830,0.02541549,61695.0,61694.0,0.46282671]
[1728054384057,0.02541549,61695.0,61694.0,0.64001342]
[1728054384525,0.02541549,61695.0,61694.0,0.44427671]
[1728054384775,0.02541549,61695.0,61694.0,0.43927671]
[1728054385019,0.24543893,61707.0,61694.0,0.43927671]
[1728054385020,0.24543893,61707.0,61695.0,0.1]
[1728054385245,0.24543893,61707.0,61706.0,0.162058]
[1728054385470,0.24543893,61716.0,61715.0,0.162035]
[1728054385946,0.24543893,61723.0,61714.0,0.324074]
[1728054385947,0.24543893,61723.0,61717.0,0.162029]
[1728054386206,0.01442481,61726.0,61706.0,0.24543893]
[1728054386758,0.01442481,61726.0,61715.0,0.007]
[1728054386759,0.24543893,61723.0,61715.0,0.007]
[1728054386995,0.44512403,61726.0,61715.0,0.007]
[1728054386996,0.0254045,61722.0,61715.0,0.007]
[1728054387476,0.0254045,61722.0,61718.0,0.162025]
[1728054387730,0.0254045,61722.0,61717.0,0.162029]
[1728054388202,0.0254045,61722.0,61720.0,0.162022]
[1728054388203,0.01017111,61721.0,61720.0,0.162022]
[1728054388437,0.0254045,61722.0,61720.0,0.162022]
[1728054388438,0.0254045,61722.0,61720.0,0.07315289]
[1728054388668,0.0254045,61722.0,61721.0,0.162019]
[1728054391334,0.0254045,61722.0,61721.0,0.167019]
[1728054392067,0.0254045,61722.0,61721.0,0.168019]
[1728054392761,0.0254045,61722.0,61721.0,0.006]
[1728054393492,0.0254045,61722.0,61721.0,0.168019]
[1728054394931,0.0254045,61722.0,61721.0,0.2496313]
[1728054395867,0.0254045,61722.0,61721.0,0.168019]
[1728054396325,0.03560301,61722.0,61721.0,0.168019]
[1728054396796,0.0254045,61722.0,61721.0,0.168019]
[1728054397277,0.03558503,61722.0,61721.0,0.168019]
[1728054397757,0.01018053,61722.0,61721.0,0.168019]
[1728054398003,0.01442481,61726.0,61725.0,0.162008]
[1728054398700,0.01442481,61726.0,61721.0,0.006]
[1728054399197,0.01442481,61726.0,61721.0,0.163016]
[1728054399432,0.01442481,61726.0,61725.0,0.001]
[1728054399433,0.17643081,61726.0,61725.0,0.001]
[1728054399682,0.42186974,61726.0,61725.0,0.001]
[1728054399929,0.17643081,61726.0,61725.0,0.001]
[1728054400441,0.01442481,61726.0,61725.0,0.163008]
[1728054400712,0.01442481,61726.0,61725.0,0.162008]
[1728054400713,0.03982675,61726.0,61725.0,0.162008]
[1728054401680,0.03982675,61726.0,61725.0,0.172008]
[1728054402185,0.03982675,61726.0,61725.0,0.162008]
[1728054402685,0.03982675,61726.0,61725.0,0.255508]
[1728054403265,0.03982675,61726.0,61725.0,0.3983348]
[1728054403466,0.03982675,61726.0,61725.0,0.67252151]
[1728054403721,0.03982675,61726.0,61725.0,0.66152151]
[1728054403968,0.03982675,61726.0,61725.0,0.65852151]
[1728054404276,0.03982675,61726.0,61725.0,0.66152151]
[1728054404527,0.03982675,61726.0,61725.0,0.67552151]
[1728054404762,0.03982675,61726.0,61725.0,0.66152151]
[1728054404988,7.5e-07,61726.0,61725.0,0.73607151]
[1728054405238,0.0002,61739.0,61738.0,0.03255]
[1728054405482,0.0002,61739.0,61738.0,0.65774222]
[1728054405958,0.0002,61739.0,61738.0,0.60864212]
[1728054406188,0.0002,61739.0,61738.0,1.01726776]
[1728054406429,0.000818,61743.0,61742.0,0.03955]
[1728054406719,0.000819,61751.0,61749.0,0.161945]
[1728054407011,0.0998,61777.0,61749.0,0.161945]
[1728054407012,0.24543893,61778.0,61753.0,0.002]
[1728054407270,0.0002,61779.0,61778.0,0.241769]
[1728054407271,0.24563893,61779.0,61778.0,0.241769]
[1728054407532,0.24563893,61779.0,61778.0,0.374319]
[1728054407756,0.0002,61779.0,61778.0,0.374319]
[1728054408008,0.0002,61779.0,61778.0,0.241769]
[1728054408222,0.0002,61779.0,61778.0,0.161869]
[1728054408705,0.0002,61779.0,61778.0,0.175869]
[1728054409892,0.0002,61779.0,61778.0,0.41030793]
[1728054410143,0.0002,61779.0,61778.0,0.164869]
[1728054410368,0.0002,61779.0,61778.0,0.187869]
[1728054410961,0.0001,61804.0,61796.0,0.0772]
[1728054410965,0.24543893,61800.0,61796.0,0.1822]
[1728054411136,0.0001,61804.0,61803.0,0.194354]
[1728054411387,0.0001,61804.0,61803.0,0.261804]
[1728054411614,0.0001,61804.0,61803.0,0.31047804]
[1728054411862,0.0001,61804.0,61803.0,0.69090584]
[1728054412279,0.0001,61804.0,61803.0,0.73583541]
[1728054412492,0.0001,61804.0,61803.0,0.69090584]
[1728054412930,0.01,61817.0,61816.0,0.16177]
[1728054414106,0.01,61817.0,61816.0,0.20832]
[1728054414326,0.01,61817.0,61816.0,0.16177]
[1728054414987,0.01,61817.0,61811.0,0.679678]
[1728054414988,0.01,61817.0,61811.0,0.356114]
[1728054415213,0.01,61817.0,61803.0,0.4664298]
[1728054415214,0.01,61817.0,61813.0,0.161777]
[1728054415672,0.01,61817.0,61804.0,0.03255]
[1728054415673,0.01,61817.0,61811.0,0.323566]
[1728054415895,0.01,61817.0,61816.0,0.013]
[1728054416130,0.01,61817.0,61809.0,0.323576]
[1728054416365,0.171767,61817.0,61816.0,0.014]
[1728054416809,0.325543,61816.0,61807.0,0.40723093]
[1728054417043,0.43910184,61817.0,61815.0,0.24543893]
[1728054417266,0.01,61817.0,61816.0,0.16177]
[1728054417492,0.01,61817.0,61816.0,0.16577]
[1728054418764,0.01,61817.0,61816.0,0.19832]
[1728054419001,0.01,61817.0,61816.0,0.19432]
[1728054419259,0.01,61817.0,61816.0,0.24401057]
[1728054419993,0.01,61817.0,61816.0,1.20373805]
[1728054420217,0.01,61817.0,61816.0,0.94429912]
[1728054420444,0.01,61817.0,61816.0,0.93629912]
[1728054420675,0.01,61817.0,61816.0,0.94129912]
[1728054420909,0.01,61817.0,61816.0,0.96929912]
[1728054421669,0.01,61817.0,61816.0,0.97357757]
[1728054421928,0.01,61817.0,61816.0,0.95957757]
[1728054422438,0.01,61817.0,61816.0,0.94057757]
[1728054422671,0.01,61817.0,61816.0,0.35801057]
[1728054422892,0.01,61817.0,61816.0,0.19432]
[1728054423150,0.01,61817.0,61816.0,0.20832]
[1728054423398,0.01,61817.0,61816.0,0.22232]
[1728054423399,0.0099,61817.0,61816.0,0.22232]
[1728054423632,0.0099,61817.0,61816.0,0.3416181]
[1728054423860,0.0099,61817.0,61816.0,0.3276181]
[1728054424094,0.0099,61817.0,61816.0,0.3136181]
[1728054424332,0.0099,61817.0,61816.0,0.3416181]
[1728054424842,0.0099,61817.0,61816.0,0.3292501]
[1728054425109,0.010716,61817.0,61816.0,0.177402]
[1728054425337,0.010716,61817.0,61816.0,0.191402]
[1728054425583,0.010716,61817.0,61816.0,0.177402]
[1728054425835,0.010716,61817.0,61816.0,0.191402]
[1728054426379,0.010716,61817.0,61816.0,0.163402]
[1728054426610,0.010716,61817.0,61816.0,0.024632]
[1728054426611,0.172483,61817.0,61816.0,0.024632]
[1728054426896,0.010716,61817.0,61800.0,0.24543893]
[1728054427169,0.1618,61805.0,61800.0,0.24543893]
[1728054427357,0.260591,61808.0,61807.0,0.24543893]
[1728054427623,0.0988,61808.0,61792.0,0.24543893]
[1728054427865,0.161808,61802.0,61792.0,0.24543893]
[1728054428101,0.0795,61802.0,61792.0,0.24543893]
[1728054428337,0.0795,61802.0,61800.0,0.007]
[1728054428338,0.161809,61801.0,61800.0,0.007]
[1728054429126,0.161829,61794.0,61787.0,0.323692]
[1728054429398,0.161846,61787.0,61786.0,0.24543893]
[1728054429631,0.323654,61795.0,61781.0,0.16186]
[1728054429906,0.323654,61795.0,61769.0,0.03255]
[1728054429907,0.161831,61793.0,61788.0,0.161841]
[1728054430197,0.323657,61794.0,61782.0,0.04072989]
[1728054430458,0.24543893,61795.0,61782.0,0.04072989]
[1728054430459,0.323673,61791.0,61782.0,0.04072989]
[1728054430715,0.24543893,61795.0,61781.0,0.16186]
[1728054430716,0.16185,61786.0,61781.0,0.16186]
[1728054430987,0.56909493,61794.0,61786.0,0.161847]
[1728054431208,0.56909493,61794.0,61787.0,0.006]
[1728054431209,0.02537549,61789.0,61787.0,0.006]
[1728054431481,0.02537549,61789.0,61788.0,0.161843]
[1728054432150,0.02537549,61789.0,61785.0,0.323703]
[1728054432413,0.02537549,61789.0,61778.0,0.323736]
[1728054432414,0.161845,61788.0,61778.0,0.161867]
[1728054432655,0.01742855,61787.0,61782.0,0.323717]
[1728054432919,0.02537549,61789.0,61784.0,0.323705]
[1728054433156,0.02537549,61789.0,61782.0,0.323717]
[1728054433417,0.02637549,61789.0,61788.0,0.166843]
[1728054433947,0.02537549,61789.0,61788.0,0.161843]
[1728054434926,0.02637549,61789.0,61788.0,0.161843]
[1728054435380,0.05438048,61789.0,61788.0,0.161843]
[1728054435631,0.02637549,61789.0,61788.0,0.161843]
[1728054436350,0.161844,61788.0,61782.0,0.161857]
[1728054436607,0.02637549,61789.0,61784.0,0.323705]
[1728054436840,0.02537549,61789.0,61788.0,0.169843]
[1728054437086,0.40724093,61804.0,61796.0,0.161822]
[1728054437087,0.24543893,61797.0,61796.0,0.161822]
[1728054437333,0.24543893,61797.0,61788.0,0.328687]
[1728054437334,0.24543893,61797.0,61793.0,0.323658]
[1728054437562,0.0977,61800.0,61794.0,0.0647322]
[1728054437821,0.0977,61800.0,61799.0,0.161814]
[1728054438057,0.0977,61800.0,61791.0,0.32367]
[1728054438316,0.0977,61800.0,61792.0,0.323664]
[1728054438573,0.0977,61800.0,61789.0,0.161839]
[1728054438574,0.002,61799.0,61789.0,0.161839]
[1728054438835,0.002,61799.0,61788.0,0.01064]
[1728054438836,0.161841,61789.0,61788.0,0.01064]
[1728054439386,0.161841,61789.0,61788.0,0.00164]
[1728054440158,0.18721751,61789.0,61788.0,0.00164]
[1728054440446,0.28531751,61789.0,61788.0,0.01064]
[1728054440707,0.28531751,61789.0,61788.0,0.00264]
[1728054440953,0.28631751,61789.0,61788.0,0.00264]
[1728054441211,0.28531751,61789.0,61788.0,0.00164]
[1728054441729,0.28531751,61789.0,61788.0,0.00264]
[1728054441962,0.02537651,61789.0,61788.0,0.00264]
[1728054442218,0.24543893,61802.0,61788.0,0.00264]
[1728054442516,0.24543893,61792.0,61791.0,0.161835]
[1728054442740,0.27081007,61802.0,61788.0,0.00264]
[1728054443010,0.323625,61800.0,61788.0,0.00364]
[1728054443253,0.161823,61796.0,61791.0,0.161835]
[1728054443495,0.161823,61796.0,61788.0,0.00664]
[1728054443496,0.323658,61794.0,61788.0,0.00664]
[1728054443746,0.0992,61795.0,61788.0,0.00164]
[1728054444012,0.02537501,61793.0,61788.0,0.00164]
[1728054444238,0.02537501,61793.0,61789.0,0.32368]
[1728054444478,0.02537501,61793.0,61788.0,0.325327]
[1728054444719,0.02537501,61793.0,61792.0,0.161833]
[1728054446761,0.02537501,61793.0,61788.0,0.00164]
[1728054446999,0.02637501,61793.0,61792.0,0.174833]
[1728054447246,0.001,61793.0,61792.0,0.174833]
[1728054447493,0.0992,61795.0,61793.0,0.161829]
[1728054447704,0.0992,61795.0,61794.0,0.161828]
[1728054447909,0.0992,61795.0,61793.0,0.161829]
[1728054448148,0.0992,61795.0,61792.0,0.182833]
[1728054448423,0.6897353,61795.0,61792.0,0.021]
[1728054448660,0.16183,61793.0,61792.0,0.005]
[1728054449142,0.323656,61794.0,61788.0,0.00164]
[1728054449428,0.422852,61795.0,61788.0,0.00164]
[1728054449429,0.0992,61795.0,61788.0,0.00164]
[1728054449676,0.486491,61793.0,61792.0,0.005]
[1728054450193,0.486491,61793.0,61788.0,0.00164]
[1728054450194,0.161841,61789.0,61788.0,0.00164]
[1728054450430,0.161841,61789.0,61764.0,0.0788]
[1728054450431,0.323746,61777.0,61774.0,0.24543893]
[1728054450702,0.161877,61775.0,61774.0,0.24543893]
[1728054450929,0.161877,61775.0,61766.0,0.24543893]
[1728054450930,0.161886,61772.0,61767.0,0.161898]
[1728054451183,0.2813033,61768.0,61754.0,0.03255]
[1728054451426,0.161926,61757.0,61753.0,0.161934]
[1728054451666,0.323804,61766.0,61755.0,0.24543893]
[1728054451667,0.323824,61762.0,61755.0,0.24543893]
[1728054451906,0.0983,61767.0,61755.0,0.05693189]
[1728054452146,0.24543893,61766.0,61763.0,0.161907]
[1728054452346,0.24543893,61766.0,61763.0,0.161908]
[1728054452598,0.260199,61767.0,61766.0,0.161901]
[1728054452599,0.0983,61767.0,61766.0,0.161901]
[1728054453071,0.1013,61767.0,61766.0,0.161901]
[1728054453311,0.12668384,61767.0,61766.0,0.161901]
[1728054453542,0.02538384,61767.0,61766.0,0.161901]
[1728054454012,0.03038384,61767.0,61766.0,0.161901]
[1728054454252,0.03038384,61767.0,61761.0,0.161912]
[1728054454667,0.34918284,61767.0,61757.0,0.323849]
[1728054454668,0.161901,61766.0,61757.0,0.323849]
[1728054455022,0.24543893,61765.0,61747.0,0.27798893]
[1728054455272,0.161905,61765.0,61758.0,0.161921]
[1728054455498,0.37491018,61766.0,61747.0,0.03255]
[1728054455499,0.24543893,61763.0,61747.0,0.03255]
[1728054455692,0.161902,61766.0,61759.0,0.161917]
[1728054455840,0.001,61767.0,61747.0,0.03255]
[1728054456038,0.05702199,61766.0,61760.0,0.161915]
[1728054456268,0.001,61767.0,61759.0,0.161918]
[1728054456269,0.24543893,61761.0,61759.0,0.161918]
[1728054456471,0.02538528,61765.0,61758.0,0.002]
[1728054456735,0.001,61763.0,61761.0,0.161913]
[1728054456958,0.001,61763.0,61754.0,0.323861]
[1728054457139,0.02538528,61765.0,61760.0,0.161916]
[1728054457412,0.02538528,61765.0,61758.0,0.32384]
[1728054457609,0.02538528,61765.0,61761.0,0.161912]
[1728054457778,0.02538528,61765.0,61759.0,0.001]
[1728054458138,0.02538528,61765.0,61760.0,0.32383]
[1728054458418,0.02538528,61765.0,61759.0,0.001]
[1728054458419,0.02538528,61765.0,61764.0,0.161906]
[1728054458637,0.02538528,61765.0,61760.0,0.323832]
[1728054458888,0.02538528,61765.0,61761.0,0.323826]
[1728054459146,0.323819,61763.0,61759.0,0.002]
[1728054459386,0.323819,61763.0,61754.0,0.323863]
[1728054459387,0.161914,61761.0,61760.0,0.001]
[1728054459888,0.161924,61758.0,61753.0,0.32387]
[1728054460135,0.02538528,61765.0,61749.0,0.323891]
[1728054460136,0.161929,61756.0,61749.0,0.323888]
[1728054460368,0.161925,61757.0,61752.0,0.161937]
[1728054460629,0.417934,61760.0,61741.0,0.03255]
[1728054460630,0.161934,61754.0,61741.0,0.03255]
[1728054460865,0.323869,61754.0,61744.0,0.323913]
[1728054461111,0.0941,61760.0,61744.0,0.0356463]
[1728054461369,0.32753893,61761.0,61744.0,0.03255]
[1728054461370,0.24543893,61759.0,61744.0,0.03255]
[1728054461610,0.24543893,61759.0,61758.0,0.161922]
[1728054462330,0.001,61761.0,61755.0,0.323859]
[1728054462335,0.161901,61766.0,61760.0,0.32383]
[1728054462583,0.323802,61767.0,61752.0,0.001]
[1728054462821,0.161903,61766.0,61755.0,0.323857]
[1728054463061,0.0988,61770.0,61769.0,0.161893]
[1728054463301,0.34423893,61770.0,61769.0,0.161893]
[1728054463683,0.56917393,61779.0,61762.0,0.32382]
[1728054463684,0.24543893,61779.0,61762.0,0.32382]
[1728054463686,0.24543893,61779.0,61760.0,0.42981379]
[1728054463909,0.24543893,61779.0,61770.0,0.323777]
[1728054463910,0.24543893,61772.0,61770.0,0.323777]
[1728054464141,0.0253815,61775.0,61774.0,0.16188]
[1728054465346,0.0253815,61775.0,61774.0,0.16288]
[1728054465581,0.0253815,61775.0,61774.0,0.16188]
[1728054465816,0.0253815,61775.0,61774.0,0.16288]
[1728054466048,0.0253815,61775.0,61774.0,0.16188]
[1728054466486,0.0253815,61775.0,61774.0,0.16588]
[1728054467157,0.0253815,61775.0,61774.0,0.16188]
[1728054467376,0.0253815,61775.0,61774.0,0.16488]
[1728054467593,0.0253815,61775.0,61774.0,0.007]
[1728054467808,0.2253815,61775.0,61774.0,0.004]
[1728054468023,0.361877,61775.0,61774.0,0.017]
[1728054468460,0.2,61775.0,61774.0,0.004]
[1728054468725,0.2,61775.0,61774.0,0.006]
[1728054468955,0.2,61775.0,61774.0,0.16788]
[1728054469176,0.2,61775.0,61774.0,0.16188]
[1728054469388,0.2,61775.0,61774.0,0.16288]
[1728054469599,0.2,61775.0,61774.0,0.16488]
[1728054470078,0.2,61775.0,61774.0,0.16288]
[1728054470310,0.2,61775.0,61774.0,0.16488]
[1728054470549,0.2,61775.0,61774.0,0.16388]
[1728054470790,0.2,61775.0,61774.0,0.16188]
[1728054471016,0.2,61775.0,61774.0,0.16588]
[1728054471258,0.2,61775.0,61774.0,0.17188]
[1728054471259,0.201,61775.0,61774.0,0.17188]
[1728054471456,0.22638023,61775.0,61774.0,0.17188]
[1728054471686,0.22638023,61775.0,61774.0,0.006]
[1728054471899,0.22638023,61775.0,61774.0,0.16788]
[1728054472127,0.22638023,61775.0,61774.0,0.17988]
[1728054472356,0.22638023,61775.0,61774.0,0.16188]
[1728054472598,0.22538023,61775.0,61774.0,0.16188]
[1728054473070,0.22538023,61775.0,61774.0,0.16788]
[1728054473071,0.22638023,61775.0,61774.0,0.16788]
[1728054473517,0.22538023,61775.0,61774.0,0.16188]
[1728054473757,0.22538023,61775.0,61774.0,0.16888]
[1728054473978,0.22638023,61775.0,61774.0,0.16788]
[1728054474439,0.22538023,61775.0,61774.0,0.17188]
[1728054475148,0.22538023,61775.0,61774.0,0.16188]
[1728054475399,0.22538023,61775.0,61774.0,0.17388]
[1728054475624,0.22638023,61775.0,61774.0,0.17988]
[1728054476118,0.22638023,61775.0,61774.0,0.012]
[1728054476120,0.38725723,61775.0,61774.0,0.012]
[1728054476525,0.38725723,61775.0,61774.0,0.018]
[1728054476526,0.48285723,61775.0,61774.0,0.018]
[1728054476777,0.48385723,61775.0,61774.0,0.01964]
[1728054477017,0.32198023,61775.0,61774.0,0.01964]
[1728054477250,0.32198023,61775.0,61774.0,0.00164]
[1728054477251,0.32098023,61775.0,61774.0,0.00164]
[1728054477728,0.32098023,61775.0,61774.0,0.16452]
[1728054477729,0.22538023,61775.0,61774.0,0.16452]
[1728054477961,0.22538023,61775.0,61774.0,0.16552]
[1728054477962,0.2,61775.0,61774.0,0.16552]
[1728054478193,0.2,61775.0,61774.0,0.16652]
[1728054478426,0.2,61775.0,61774.0,0.16552]
[1728054478909,0.2,61775.0,61774.0,0.16952]
[1728054479141,0.2,61775.0,61774.0,0.16752]
[1728054479410,0.201,61775.0,61774.0,0.17252]
[1728054480123,0.201,61775.0,61774.0,0.16352]
[1728054480124,0.2,61775.0,61774.0,0.16352]
[1728054480353,0.2,61775.0,61774.0,0.17452]
[1728054480585,0.201,61775.0,61774.0,0.17852]
[1728054480810,0.201,61775.0,61774.0,0.16752]
[1728054481044,0.2,61775.0,61774.0,0.17352]
[1728054481305,0.22537816,61775.0,61774.0,0.16352]
[1728054481795,0.22537816,61775.0,61774.0,0.17452]
[1728054482018,0.22537816,61775.0,61774.0,0.16352]
[1728054482293,0.22637816,61775.0,61774.0,0.16852]
[1728054482752,0.22537816,61775.0,61774.0,0.19607]
[1728054483250,0.22637816,61775.0,61774.0,0.21307]
[1728054483752,0.22537816,61775.0,61774.0,0.34264608]
[1728054483993,0.22637816,61775.0,61774.0,0.21507]
[1728054484549,0.22637816,61775.0,61774.0,0.18252]
[1728054485029,0.22447816,61775.0,61774.0,0.18252]
[1728054485479,0.22347816,61775.0,61774.0,0.17752]
[1728054486009,0.22447816,61775.0,61774.0,0.18252]
[1728054486513,0.22447816,61775.0,61774.0,0.56526942]
[1728054486786,0.22447816,61775.0,61774.0,0.86100613]
[1728054486787,0.21635167,61775.0,61774.0,0.86100613]
[1728054487011,0.00082,61788.0,61787.0,0.161846]
[1728054487273,0.00082,61788.0,61787.0,0.44321082]
[1728054487748,0.00082,61788.0,61787.0,0.161846]
[1728054488212,0.00082,61788.0,61787.0,0.171846]
[1728054488928,0.00082,61788.0,61787.0,0.61639753]
[1728054489196,0.00082,61793.0,61792.0,0.261833]
[1728054489442,0.00082,61793.0,61792.0,0.73893453]
[1728054490432,0.00082,61793.0,61792.0,0.74393453]
[1728054490647,0.00082,61793.0,61792.0,0.73893453]
[1728054491104,0.00082,61800.0,61792.0,0.73893453]
[1728054491105,0.00082,61800.0,61799.0,0.161814]
[1728054491370,0.00082,61800.0,61799.0,0.74391553]
[1728054491594,0.00082,61800.0,61799.0,0.74591553]
[1728054491866,0.00082,61800.0,61799.0,0.74391553]
[1728054492110,0.24543893,61816.0,61808.0,0.44315582]
[1728054492111,0.24125893,61809.0,61808.0,0.44315582]
[1728054492364,0.24125893,61809.0,61808.0,0.161791]
[1728054492601,0.24543893,61816.0,61815.0,0.161773]
[1728054492854,0.010716,61817.0,61816.0,0.16177]
[1728054493392,0.010716,61817.0,61816.0,0.40720893]
[1728054493632,0.010716,61817.0,61816.0,0.19432]
[1728054493872,0.005716,61817.0,61816.0,0.19432]
[1728054495054,0.005716,61817.0,61816.0,0.21232]
[1728054495738,0.005716,61817.0,61816.0,0.20832]
[1728054495982,0.005716,61817.0,61816.0,0.22232]
[1728054496646,0.005716,61817.0,61816.0,0.22356337]
[1728054497361,0.005716,61817.0,61816.0,0.22356328]
[1728054497612,0.005716,61817.0,61816.0,0.18977]
[1728054497859,0.005716,61817.0,61816.0,0.22232]
[1728054498351,0.005716,61817.0,61816.0,0.18977]
[1728054499318,0.005716,61817.0,61816.0,0.014]
[1728054499562,0.03107778,61817.0,61816.0,0.18177]
[1728054500508,0.03107778,61817.0,61816.0,0.16941]
[1728054500773,0.03107778,61817.0,61816.0,0.17641]
[1728054500997,0.03107778,61817.0,61816.0,0.17041]
[1728054501250,0.03107778,61817.0,61816.0,0.18041]
[1728054501487,0.03107778,61817.0,61816.0,0.18641]
[1728054501737,0.005716,61817.0,61816.0,0.16941]
[1728054501983,0.005716,61817.0,61816.0,0.17241]
[1728054502226,0.005716,61817.0,61816.0,0.20396]
[1728054502472,0.005716,61817.0,61816.0,0.17141]
[1728054502720,0.005716,61817.0,61816.0,0.16341]
[1728054503227,0.005716,61817.0,61816.0,0.01564]
[1728054503929,0.167483,61817.0,61816.0,0.01564]
[1728054504149,0.167483,61817.0,61816.0,0.02475502]
[1728054504388,0.005716,61817.0,61816.0,0.16252502]
[1728054504639,0.005716,61817.0,61816.0,0.00875502]
[1728054504862,0.005716,61817.0,61816.0,0.17952502]
[1728054504863,0.03108062,61817.0,61816.0,0.17952502]
[1728054505095,0.03108062,61817.0,61816.0,0.16252502]
[1728054505327,0.03108062,61817.0,61816.0,0.16652502]
[1728054505552,0.03108062,61817.0,61816.0,0.17052502]
[1728054506057,0.03108062,61817.0,61816.0,0.00975502]
[1728054506291,0.03108062,61817.0,61816.0,0.01775502]
[1728054506739,0.03108062,61817.0,61816.0,0.17952502]
[1728054507213,0.005716,61817.0,61816.0,0.17952502]
[1728054510048,0.005716,61817.0,61816.0,0.17152502]
[1728054510515,0.0310758,61817.0,61816.0,0.16252502]
[1728054511017,0.399526,61838.0,61816.0,0.16252502]
[1728054511018,0.0984,61842.0,61817.0,0.0753]
[1728054511283,0.0984,61842.0,61834.0,0.161723]
[1728054511284,0.24543893,61835.0,61834.0,0.161723]
[1728054511735,0.24543893,61842.0,61836.0,0.161718]
[1728054512956,0.0160301,61847.0,61836.0,0.161718]
[1728054513422,0.0160301,61847.0,61836.0,0.169718]
[1728054513713,0.0160301,61847.0,61836.0,0.77642175]
[1728054513959,0.0160301,61847.0,61836.0,0.52298282]
[1728054514215,0.0160301,61847.0,61836.0,0.54006758]
[1728054514469,0.0160301,61847.0,61836.0,0.83880429]
[1728054514727,0.0160301,61847.0,61846.0,0.161691]
[1728054514985,0.0160301,61847.0,61846.0,0.68544253]
[1728054515226,0.0160301,61847.0,61846.0,0.81799253]
[1728054515491,0.0002,61859.0,61846.0,0.81799253]
[1728054515492,0.0002,61859.0,61858.0,0.44302482]
[1728054515718,0.0002,61859.0,61858.0,0.71796153]
[1728054516460,0.00082,61862.0,61861.0,0.194202]
[1728054516736,0.00082,61862.0,61861.0,0.45738871]
[1728054516989,0.24543893,61870.0,61869.0,0.54299582]
[1728054517218,0.24543893,61870.0,61869.0,0.161631]
[1728054517467,0.00025,61871.0,61870.0,0.161629]
[1728054517704,0.00025,61871.0,61870.0,0.32481571]
[1728054517999,0.00025,61871.0,61870.0,0.194179]
[1728054518226,0.00025,61871.0,61870.0,0.161629]
[1728054518446,0.00025,61871.0,61867.0,0.161634]
[1728054518668,0.00025,61871.0,61868.0,0.161632]
[1728054518922,0.00025,61871.0,61861.0,0.00408441]
[1728054518923,0.00025,61871.0,61869.0,0.014]
[1728054519441,0.161877,61871.0,61869.0,0.014]
[1728054519687,0.00025,61871.0,61869.0,0.014]
[1728054520162,0.00025,61871.0,61862.0,0.161648]
[1728054520418,0.0977,61870.0,61857.0,0.323324]
[1728054520661,0.16164,61866.0,61858.0,0.16166]
[1728054520892,0.16164,61866.0,61857.0,0.24543893]
[1728054521135,0.02534512,61865.0,61858.0,0.32332]
[1728054521468,0.02534512,61865.0,61848.0,0.00416465]